[Event "Charlotte Open 2024"]
[Site "Charlotte"]
[Date "2024.01.14"]
[Round "2.12"]
[White "Nguyen, James Le"]
[Black "Abrahamyan, Tatev"]
[Result "0-1"]
[ECO "C07"]
[WhiteElo "2135"]
[BlackElo "2311"]
[Annotator "RC"]
[PlyCount "148"]
[EventDate "2024.01.05"]
[EventType "swiss"]
[EventCountry "USA"]
[SourceTitle "playchess.com"]
[Source "ChessBase"]
[SourceQuality "1"]
[TimeControl "6600+10"]

1. e4 {[%emt 0:02:49]} e6 {[%emt 0:00:13]} 2. d4 {[%emt 0:00:08]} d5 {[%emt 0:00:05]} 3. Nd2 {[%emt 0:00:09]} c5 {[%emt 0:00:19]} 4. exd5 {[%emt 0:00:09]} Qxd5 {[%emt 0:00:08]} 5. Ngf3 {[%emt 0:00:12]} cxd4 {[%emt 0:00:06]} 6. Bc4 {[%emt 0:00:14]} Qd6 {[%emt 0:00:08]} 7. O-O {[%emt 0:00:16]} Nf6 {[%emt 0:00:06]} 8. Nb3 {[%emt 0:00:13]} Nc6 {[%emt 0:00:17]} 9. Nbxd4 {[%emt 0:00:48]} Nxd4 {[%emt 0:00:17]} 10. Nxd4 {[%emt 0:00:05]} Be7 {[%emt 0:01:05]} 11. c3 {[%emt 0:02:22]} O-O {[%emt 0:00:57]} 12. Qf3 {[%emt 0:03:55]} Qc7 {[%emt 0:04:36]} 13. Bd3 {[%emt 0:04:35]} Rd8 {[%emt 0:11:07]} 14. Re1 {[%emt 0:14:02]} Bd7 {[%emt 0:11:43]} 15. Bg5 {[%emt 0:10:23]} Rac8 {[%emt 0:15:29]} 16. a4 {[%emt 0:06:13]} Nd5 {[%emt 0:29:53]} 17. h4 {[%emt 0:15:22]} Bxg5 {[%emt 0:07:03]} 18. hxg5 {[%emt 0:00:21]} Nf4 {[%emt 0:01:48]} 19. Be4 {[%emt 0:07:14]} e5 {[%emt 0:09:38]} 20. Nf5 {[%emt 0:07:42]} Be6 {[%emt 0:00:36]} 21. a5 {[%emt 0:04:36]} Rd2 {[%emt 0:03:24]} 22. Rad1 {[%emt 0:09:53]} Rxb2 {[%emt 0:07:32]} 23. Nd6 {[%emt 0:02:55]} Rf8 {[%emt 0:01:18]} 24. Nxb7 {[%emt 0:04:35]} Qe7 {[%emt 0:02:01]} 25. Rb1 {[%emt 0:03:04]} Rxb1 {[%emt 0:00:15]} 26. Rxb1 {[%emt 0:04:31]} Qxg5 {[%emt 0:00:03]} 27. Qe3 {[%emt 0:03:49]} Bf5 {[%emt 0:01:04]} 28. Nd6 {[%emt 0:01:22]} Bg6 {[%emt 0:00:31]} 29. g3 {[%emt 0:00:44]} Qg4 {[%emt 0:00:32]} 30. Bf3 {[%emt 0:01:01]} Qe6 {[%emt 0:00:48]} 31. Rd1 {[%emt 0:00:14]} Nh3+ {[%emt 0:00:20]} 32. Kh2 {[%emt 0:00:37]} h6 {[%emt 0:00:31]} 33. Qxa7 {[%emt 0:00:18]} Ng5 {[%emt 0:00:05]} 34. Bg2 {[%emt 0:00:05]} Qg4 {[%emt 0:00:10]} 35. Re1 {[%emt 0:00:23]} e4 {[%emt 0:00:21]} 36. Qd4 {[%emt 0:00:21]} Rd8 {[%emt 0:00:21]} 37. Qb6 {[%emt 0:00:20]} Rf8 {[%emt 0:00:12]} 38. Qd4 {[%emt 0:00:08]} f5 {[%emt 0:00:09]} 39. a6 {[%emt 0:00:11]} f4 {[%emt 0:00:08]} 40. Nxe4 {[%emt 0:00:11]} Bxe4 {[%emt 0:00:19]} 41. Qc4+ {[%emt 0:00:15]} Kh8 {[%emt 0:00:06]} 42. Rxe4 {[%emt 0:00:04]} Nxe4 {[%emt 0:00:40]} 43. Qxe4 {[%emt 0:00:03]} fxg3+ {[%emt 0:00:19]} 44. fxg3 {[%emt 0:00:03]} Qh5+ {[%emt 0:00:01]} 45. Kg1 {[%emt 0:00:06]} Rd8 {[%emt 0:00:18]} 46. Qf3 {[%emt 0:00:22]} Qa5 {[%emt 0:00:09]} 47. Qe2 {[%emt 0:00:21]} Qxc3 {[%emt 0:00:12]} 48. a7 {[%emt 0:00:03]} Qxg3 {[%emt 0:00:08]} 49. Kf1 {[%emt 0:00:20]} Qf4+ {[%emt 0:00:02]} 50. Kg1 {[%emt 0:00:01]} Qg5 {[%emt 0:00:02]} 51. Qf3 {[%emt 0:00:15]} Qc1+ {[%emt 0:00:28]} 52. Qf1 {[%emt 0:00:11]} Qa3 {[%emt 0:00:09]} 53. Qf7 {[%emt 0:00:13]} Rd1+ {[%emt 0:00:12]} 54. Kh2 {[%emt 0:00:06]} Qd6+ {[%emt 0:00:01]} 55. Kh3 {[%emt 0:00:03]} Rd3+ {[%emt 0:00:06]} 56. Bf3 {[%emt 0:00:02]} Rxf3+ {[%emt 0:00:16]} 57. Qxf3 {[%emt 0:00:02]} Qd7+ {[%emt 0:00:00]} 58. Kg3 {[%emt 0:00:06]} Qxa7 {[%emt 0:00:01]} 59. Qf8+ {[%emt 0:00:02]} Kh7 {[%emt 0:00:01]} 60. Qf5+ {[%emt 0:00:02]} g6 {[%emt 0:00:01]} 61. Qd5 {[%emt 0:00:05]} Qe3+ {[%emt 0:00:09]} 62. Kg2 {[%emt 0:00:54]} Qg5+ {[%emt 0:00:21]} 63. Qxg5 {[%emt 0:00:02]} hxg5 {[%emt 0:00:01]} 64. Kg3 {[%emt 0:00:26]} Kg7 {[%emt 0:00:01]} 65. Kf3 {[%emt 0:00:05]} Kf7 {[%emt 0:00:00]} 66. Kg3 {[%emt 0:00:14]} Ke6 {[%emt 0:00:04]} 67. Kg4 {[%emt 0:00:06]} Kf6 {[%emt 0:00:02]} 68. Kg3 {[%emt 0:00:02]} Kf5 {[%emt 0:00:01]} 69. Kf3 {[%emt 0:00:01]} g4+ {[%emt 0:00:01]} 70. Kg3 {[%emt 0:00:01]} Kg5 {[%emt 0:00:01]} 71. Kg2 {[%emt 0:00:02]} Kf4 {[%emt 0:00:12]} 72. Kf2 {[%emt 0:00:02]} g3+ {[%emt 0:00:05]} 73. Kg2 {[%emt 0:00:03]} Kg4 {[%emt 0:00:01]} 74. Kg1 {[%emt 0:00:02]} Kh3 {[%emt 0:00:02]} 0-1

[Event "Charlotte Open 2024"]
[Site "Charlotte"]
[Date "2024.01.14"]
[Round "2.13"]
[White "Ammasani, Smayan"]
[Black "Vanapalli, Vishnu"]
[Result "0-1"]
[ECO "C78"]
[WhiteElo "1638"]
[BlackElo "2276"]
[Annotator "RC"]
[PlyCount "98"]
[EventDate "2024.01.05"]
[EventType "swiss"]
[EventCountry "USA"]
[SourceTitle "playchess.com"]
[Source "ChessBase"]
[SourceQuality "1"]
[TimeControl "6600+10"]

1. e4 {[%emt 0:00:02]} e5 {[%emt 0:02:08]} 2. Nf3 {[%emt 0:00:05]} Nc6 {[%emt 0:00:12]} 3. Bb5 {[%emt 0:00:04]} a6 {[%emt 0:00:15]} 4. Ba4 {[%emt 0:00:05]} Nf6 {[%emt 0:00:32]} 5. O-O {[%emt 0:00:07]} b5 {[%emt 0:00:10]} 6. Bb3 {[%emt 0:00:04]} Bc5 {[%emt 0:00:05]} 7. c3 {[%emt 0:00:05]} d6 {[%emt 0:00:05]} 8. d4 {[%emt 0:00:57]} Bb6 {[%emt 0:00:07]} 9. a4 {[%emt 0:00:06]} Rb8 {[%emt 0:00:04]} 10. a5 {[%emt 0:00:09]} Ba7 {[%emt 0:00:06]} 11. Re1 {[%emt 0:03:21]} Bg4 {[%emt 0:03:10]} 12. d5 {[%emt 0:02:25]} Ne7 {[%emt 0:00:40]} 13. Nbd2 {[%emt 0:01:31]} Ng6 {[%emt 0:01:19]} 14. h3 {[%emt 0:01:23]} Bd7 {[%emt 0:01:24]} 15. Nf1 {[%emt 0:02:37]} h6 {[%emt 0:02:25]} 16. Qd3 {[%emt 0:07:16]} Nh5 {[%emt 0:02:04]} 17. Be3 {[%emt 0:04:54]} Rb7 {[%emt 0:15:12]} 18. Bxa7 {[%emt 0:05:26]} Rxa7 {[%emt 0:00:33]} 19. Rac1 {[%emt 0:00:54]} O-O {[%emt 0:15:34]} 20. Red1 {[%emt 0:05:10]} Qb8 {[%emt 0:06:17]} 21. Ba2 {[%emt 0:03:27]} Ngf4 {[%emt 0:03:14]} 22. Qe3 {[%emt 0:03:44]} Nf6 {[%emt 0:00:33]} 23. Ng3 {[%emt 0:03:24]} Ra8 {[%emt 0:11:44]} 24. b3 {[%emt 0:04:19]} Rd8 {[%emt 0:08:17]} 25. c4 {[%emt 0:03:12]} bxc4 {[%emt 0:05:20]} 26. bxc4 {[%emt 0:00:18]} Ba4 {[%emt 0:01:30]} 27. Rd2 {[%emt 0:02:18]} Qb4 {[%emt 0:09:56]} 28. Qc3 {[%emt 0:01:42]} Rab8 {[%emt 0:03:20]} 29. Ne1 {[%emt 0:07:46]} Nd7 {[%emt 0:01:23]} 30. Nd3 {[%emt 0:06:30]} Qxc3 {[%emt 0:00:55]} 31. Rxc3 {[%emt 0:00:07]} Nxd3 {[%emt 0:00:04]} 32. Rcxd3 {[%emt 0:01:24]} Nc5 {[%emt 0:00:08]} 33. Ra3 {[%emt 0:04:25]} Rb4 {[%emt 0:00:07]} 34. Kh2 {[%emt 0:01:25]} Rdb8 {[%emt 0:00:28]} 35. Re3 {[%emt 0:06:36]} g6 {[%emt 0:01:47]} 36. Ra3 {[%emt 0:01:02]} Kg7 {[%emt 0:01:16]} 37. f3 {[%emt 0:02:12]} Rb2 {[%emt 0:01:34]} 38. Rxb2 {[%emt 0:01:15]} Rxb2 {[%emt 0:00:06]} 39. Kg1 {[%emt 0:01:17]} Bd7 {[%emt 0:01:24]} 40. Kf1 {[%emt 0:02:15]} f5 {[%emt 0:01:25]} 41. h4 {[%emt 0:00:57]} Kf6 {[%emt 0:01:19]} 42. Kg1 {[%emt 0:00:30]} Rc2 {[%emt 0:03:26]} 43. Kh2 {[%emt 0:00:24]} f4 {[%emt 0:01:25]} 44. Nf1 {[%emt 0:00:09]} Rb2 {[%emt 0:00:02]} 45. Kg1 {[%emt 0:00:21]} g5 {[%emt 0:00:08]} 46. hxg5+ {[%emt 0:00:16]} Kxg5 {[%emt 0:01:18]} 47. Kh2 {[%emt 0:00:14]} h5 {[%emt 0:00:20]} 48. Kg1 {[%emt 0:00:16]} h4 {[%emt 0:00:31]} 49. Kh2 {[%emt 0:00:08]} h3 {[%emt 0:00:14]} 0-1

[Event "Charlotte Open 2024"]
[Site "Charlotte"]
[Date "2024.01.14"]
[Round "2.14"]
[White "Troutman, Charles"]
[Black "Sadorra, Julio Catalino"]
[Result "0-1"]
[ECO "C26"]
[WhiteElo "1814"]
[BlackElo "2554"]
[Annotator "RC"]
[PlyCount "34"]
[EventDate "2024.01.05"]
[EventType "swiss"]
[EventCountry "USA"]
[SourceTitle "playchess.com"]
[Source "ChessBase"]
[SourceQuality "1"]
[TimeControl "6600+10"]

1. e4 {[%emt 0:13:55]} e5 {[%emt 0:00:38]} 2. Nc3 {[%emt 0:00:09]} Nf6 {[%emt 0:01:08]} 3. g3 {[%emt 0:00:07]} d5 {[%emt 0:00:26]} 4. exd5 {[%emt 0:00:06]} c6 {[%emt 0:00:05]} 5. dxc6 {[%emt 0:06:31]} Nxc6 {[%emt 0:01:41]} 6. d3 {[%emt 0:06:26]} Bc5 {[%emt 0:10:08]} 7. Bg5 {[%emt 0:12:00]} Qb6 {[%emt 0:02:38]} 8. Qd2 {[%emt 0:00:25]} Bxf2+ {[%emt 0:05:33]} 9. Qxf2 {[%emt 0:11:25]} Qxb2 {[%emt 0:00:55]} 10. Kd2 {[%emt 0:07:28]} Nd4 {[%emt 0:03:53]} 11. Rc1 {[%emt 0:02:02]} Ng4 {[%emt 0:00:04]} 12. Qg2 {[%emt 0:01:59]} Bd7 {[%emt 0:01:39]} 13. Ne4 {[%emt 0:08:40]} O-O {[%emt 0:14:00]} 14. Ne2 {[%emt 0:07:27]} f5 {[%emt 0:05:06]} 15. Nxd4 {[%emt 0:13:04]} exd4 {[%emt 0:03:08]} 16. Be7 {[%emt 0:17:55]} fxe4 {[%emt 0:00:25]} 17. Qxe4 {[%emt 0:00:06]} Qc3+ {[%emt 0:00:18]} 0-1

[Event "Charlotte Open 2024"]
[Site "Charlotte"]
[Date "2024.01.14"]
[Round "2.15"]
[White "Yan, Benjamin"]
[Black "Kogen, Jonathan"]
[Result "1/2-1/2"]
[ECO "E97"]
[WhiteElo "2025"]
[BlackElo "2220"]
[Annotator "TA"]
[PlyCount "96"]
[EventDate "2024.01.05"]
[EventType "swiss"]
[EventCountry "USA"]
[SourceTitle "playchess.com"]
[Source "ChessBase"]
[SourceQuality "1"]
[TimeControl "6600+10"]

{[%evp 19,96,6,26,7,16,15,13,17,16,0,14,0,0,0,0,0,0,0,0,-20,0,0,-10,-17,-14,-22,-20,-36,42,37,106,8,47,47,73,93,83,14,14,9,12,25,47,15,26,20,25,0,0,0,0,0,0,0,49,43,78,107,92,29,43,0,0,0,0,0,0,0,0,0,0,0,0,0,0,0,0,0,0]} 1. d4 {[%emt 0:01:34]} Nf6 {[%emt 0:00:10]} 2. c4 {[%emt 0:00:05]} g6 {[%emt 0:00:10]} 3. Nc3 {[%emt 0:00:05]} Bg7 {[%emt 0:00:07]} 4. e4 {[%emt 0:00:04]} d6 {[%emt 0:00:08]} 5. Nf3 {[%emt 0:00:21]} O-O {[%emt 0:00:18]} 6. Be2 {[%emt 0:00:04]} e5 {[%emt 0:00:20]} 7. Be3 {[%emt 0:00:48]} Ng4 {[%emt 0:00:35]} 8. Bg5 {[%emt 0:00:07]} f6 {[%emt 0:00:11]} 9. Bc1 {[%emt 0:00:14]} Nc6 {[%emt 0:00:51]} 10. O-O {[%emt 0:00:10]} f5 {[%emt 0:01:08]} 11. dxe5 {[%emt 0:00:29]} Ngxe5 {[%emt 0:01:04]} 12. exf5 {[%emt 0:02:32]} Bxf5 {[%emt 0:00:35]} 13. Be3 {[%emt 0:03:36]} Ng4 {[%emt 0:02:18]} 14. Qd5+ {[%emt 0:10:00]} Kh8 {[%emt 0:00:11]} 15. Bg5 {[%emt 0:00:29]} Qd7 {[%emt 0:00:24]} 16. Qd2 {[%emt 0:07:00]} h6 {[%emt 0:08:22]} 17. Bf4 {[%emt 0:03:13]} g5 {[%emt 0:00:42]} 18. Bg3 {[%emt 0:01:04]} Nf6 {[%emt 0:01:23]} 19. Bd3 {[%emt 0:14:11]} Rae8 {[%emt 0:04:14]} 20. Rfe1 {[%emt 0:06:34]} Bg4 {[%emt 0:08:07] aiming for ...Bxf3.} 21. Bg6 {[%emt 0:11:39] [#]} Bxf3 $1 {[%emt 0:03:58]} 22. gxf3 {[%emt 0:03:29]} Rxe1+ {[%emt 0:09:47]} 23. Rxe1 {[%emt 0:00:12]} Qh3 {[%emt 0:00:07]} (23... Ng8 $15) 24. Bb1 $14 {[%emt 0:08:15]} g4 {[%emt 0:22:28]} (24... Ne5 $14 25. Bxe5 dxe5) 25. fxg4 {[%emt 0:16:49]} ({White should try} 25. f4 $1 $16) 25... Qxg4 {[%emt 0:01:00][%cal Oc6d4] And now ...Nd4! would win.} (25... Ne5 {keeps more tension.} 26. Bxe5 dxe5 27. Qd3 Qxg4+ 28. Kf1 Qd4) 26. Qe2 {[%emt 0:06:31]} Ne5 {[%emt 0:02:57] ...Nf3+ is the strong threat.} 27. Qxg4 {[%emt 0:01:51]} Nfxg4 {[%emt 0:00:14] [#] Excellent horsemanship.} 28. Re4 {[%emt 0:02:52]} (28. Kg2 $1 $16) 28... Nf3+ $11 {[%emt 0:13:07]} 29. Kg2 {[%emt 0:03:11]} Bxc3 {[%emt 0:01:40]} 30. bxc3 {[%emt 0:00:25]} Nge5 {[%emt 0:07:38]} 31. Bxe5+ {[%emt 0:03:04]} Nxe5 $14 {[%emt 0:04:31][%mdl 4096] Endgame. [#] KRB-KRN} 32. c5 $1 {[%emt 0:02:37]} Rg8+ {[%emt 0:00:30]} (32... Kg7 33. Ra4) 33. Kh3 {[%emt 0:00:13]} Rg1 {[%emt 0:01:31]} 34. cxd6 {[%emt 0:00:56]} cxd6 {[%emt 0:00:19]} 35. Bc2 {[%emt 0:00:21]} Rc1 {[%emt 0:05:36]} 36. Re2 {[%emt 0:00:18]} Nf3 {[%emt 0:01:26]} (36... Kg7 $11 {deserves consideration.}) 37. Kg3 {[%emt 0:00:26]} Ne1 {[%emt 0:00:41]} 38. Be4 {[%emt 0:00:12]} Rxc3+ {[%emt 0:00:16] [#]} 39. f3 {[%emt 0:00:16]} (39. Re3 $1 $16 {[%cal Re3c3]} Rc1 (39... Rxe3+ $2 40. fxe3 d5 41. Bb1 $18) 40. f3 (40. Bxb7 Nc2 $18)) 39... Nd3 $11 {[%emt 0:02:38]} 40. Bxd3 {[%emt 0:00:12]} Rxd3 $14 {[%emt 0:00:04] KR-KR. The position is equal.} 41. Re7 {[%emt 0:00:12]} Ra3 {[%emt 0:00:55]} 42. Rxb7 {[%emt 0:00:02]} Rxa2 {[%emt 0:00:07]} 43. Rd7 {[%emt 0:00:04]} a5 {[%emt 0:00:36][%cal Ba7a5,Ba5a4,Ba4a3][%mdl 32]} 44. Rxd6 {[%emt 0:00:06]} Kg7 {[%emt 0:00:20]} 45. Ra6 {[%emt 0:00:09]} a4 {[%emt 0:00:10]} 46. f4 {[%emt 0:00:10]} a3 {[%emt 0:00:29]} 47. f5 {[%emt 0:00:04]} Ra1 {[%emt 0:00:36]} 48. Kg2 {[%emt 0:00:08]} h5 {[%emt 0:00:59] Weighted Error Value: White=0.15 (very precise) /Black=0.14 (very precise) .  Mistake:       	White=3     	Black=3      Inaccurate:     	White=2     	Black=3      OK:         	White=17    	Black=15     Best:        	White=2     	Black=2} 1/2-1/2

[Event "Charlotte Open 2024"]
[Site "Charlotte"]
[Date "2024.01.14"]
[Round "2.16"]
[White "Schmitz, David"]
[Black "Parker, Anthony"]
[Result "0-1"]
[ECO "C63"]
[WhiteElo "1957"]
[BlackElo "1909"]
[Annotator "TA"]
[PlyCount "64"]
[EventDate "2024.01.05"]
[EventType "swiss"]
[EventCountry "USA"]
[SourceTitle "playchess.com"]
[Source "ChessBase"]
[SourceQuality "1"]
[TimeControl "6600+10"]

{[%evp 12,64,38,20,38,9,0,0,0,0,0,-10,0,7,21,-34,-36,-218,-235,-244,-218,-202,-222,-420,-411,-478,-482,-478,-473,-471,-461,-462,-445,-425,-433,-429,-431,-418,-422,-485,-488,-482,-475,-481,-486,-477,-460,-470,-468,-509,-508,-1027,-1031,-953,-757]} 1. e4 {[%emt 0:00:02]} e5 {[%emt 0:07:13]} 2. Nf3 {[%emt 0:00:08]} Nc6 {[%emt 0:00:04]} 3. Bb5 {[%emt 0:00:04]} f5 {[%emt 0:00:27]} 4. d3 {[%emt 0:00:19]} fxe4 {[%emt 0:00:07]} 5. dxe4 {[%emt 0:00:04]} Nf6 {[%emt 0:00:08]} 6. O-O {[%emt 0:00:37]} d6 {[%emt 0:00:05]} 7. Re1 {[%emt 0:03:29]} Be7 {[%emt 0:00:45]} 8. Nc3 {[%emt 0:04:16] Inaccurate} O-O {[%emt 0:01:54] OK} 9. Bc4+ {[%emt 0:05:36]} Kh8 {[%emt 0:00:07] Best (Easy). The position is equal.} 10. Ng5 {[%emt 0:01:44]} Qe8 {[%emt 0:02:06] Inhibits Nf7+. OK} 11. Ne6 {[%emt 0:03:12] OK} Bxe6 {[%emt 0:00:13]} 12. Bxe6 {[%emt 0:00:08]} Nd4 {[%emt 0:01:16] OK} 13. Bc4 {[%emt 0:12:23] Mistake (0.6)} (13. Bh3 $11) 13... Qg6 $15 {[%emt 0:08:16] Threatens to win with ...Ng4. OK} 14. Re3 $2 {[%emt 0:09:05] Now White is beyond hope. Loses game (1.8)} ({White should play} 14. f3 $15) 14... Ng4 $19 {[%emt 0:13:09] Best (Easy)} 15. Rg3 {[%emt 0:04:55] [#] OK} Nxf2 {[%emt 0:01:02] OK} 16. Rxg6 {[%emt 0:02:10] OK} Nxd1 {[%emt 0:00:07] A dynamic duo of knights. OK} 17. Rg4 $2 {[%emt 0:02:03] Mistake (2.0)} (17. Nxd1 {was necessary.} hxg6 18. c3) 17... Nf2 {[%emt 0:09:49] OK} ({Don't take} 17... Nxc2 18. Nxd1 Nxa1 19. Ne3 $19) 18. Nd5 {[%emt 0:03:40]} Nxg4 {[%emt 0:02:01]} 19. Nxe7 {[%emt 0:00:37] Best} Nxc2 {[%emt 0:01:48] OK} 20. Rb1 {[%emt 0:00:17] OK} Nge3 {[%emt 0:03:56]} 21. Bd3 {[%emt 0:02:01] OK} Rae8 {[%emt 0:05:46]} 22. Nd5 {[%emt 0:00:45] OK} Nxd5 {[%emt 0:02:44][%cal Be3d5,Bd5f4,Bf4h3,Bh3f2][%mdl 32] EV=17.60. Goes to d6 (dbg)). OK} 23. Bxc2 {[%emt 0:00:09] OK} Nf4 {[%emt 0:00:24] OK} 24. Bd1 {[%emt 0:00:26] Prevents Ne2+. OK} d5 {[%emt 0:01:42] OK} 25. g3 {[%emt 0:00:17] Black is clearly winning.} Nh3+ {[%emt 0:01:56] OK} 26. Kg2 {[%emt 0:00:12] Best} Nf2 {[%emt 0:00:16] OK} 27. Ba4 {[%emt 0:00:28]} Nxe4 {[%emt 0:00:25] OK} 28. Bxe8 {[%emt 0:00:08] OK} Rxe8 {[%emt 0:00:03]} 29. Be3 {[%emt 0:00:22] OK} d4 {[%emt 0:00:43] OK} 30. Bg1 {[%emt 0:00:05]} c5 {[%emt 0:01:31] OK} 31. b4 {[%emt 0:00:12] Mistake (5.2)} (31. Rd1 $142) 31... c4 {[%emt 0:01:38] OK} 32. Re1 {[%emt 0:00:10]} Nd6 {[%emt 0:01:01] Weighted Error Value: White=0.42/Black=0.02 (flawless) .  Loses game:     	White=1     	---        Mistake:       	White=3     	---        Inaccurate:     	White=1     	---        OK:         	White=10    	Black=17     Best:        	White=2     	Black=2} 0-1

[Event "Charlotte Open 2024"]
[Site "Charlotte"]
[Date "2024.01.14"]
[Round "2.17"]
[White "Malireddy, Karthikeya Datta"]
[Black "Daniels, Noah M"]
[Result "0-1"]
[ECO "C54"]
[WhiteElo "1626"]
[BlackElo "1764"]
[Annotator "NA RC COMBH"]
[PlyCount "86"]
[EventDate "2024.01.05"]
[EventType "swiss"]
[EventCountry "USA"]
[SourceTitle "playchess.com"]
[Source "ChessBase"]
[SourceQuality "1"]
[TimeControl "6600+10"]

1. e4 {[%emt 0:10:03]} e5 {[%emt 0:20:02]} 2. Nf3 {[%emt 0:00:06]} Nc6 {[%emt 0:00:06]} 3. Bc4 {[%emt 0:00:05]} Bc5 {[%emt 0:00:03]} 4. c3 {[%emt 0:00:07]} Nf6 {[%emt 0:00:06]} 5. d4 {[%emt 0:00:09]} exd4 {[%emt 0:00:04]} 6. e5 {[%emt 0:00:07]} d5 {[%emt 0:00:06]} 7. Bb5 {[%emt 0:00:04]} Ne4 {[%emt 0:00:06]} 8. cxd4 {[%emt 0:00:05]} Bb4+ {[%emt 0:00:50]} 9. Nbd2 {[%emt 0:00:08]} O-O {[%emt 0:00:49]} 10. O-O {[%emt 0:00:07]} Bg4 {[%emt 0:01:12]} 11. Qa4 {[%emt 0:00:06]} Bxd2 {[%emt 0:02:35]} 12. Nxd2 {[%emt 0:00:07]} Ne7 {[%emt 0:03:38]} 13. f3 {[%emt 0:06:36]} Nxd2 {[%emt 0:00:58]} 14. Bxd2 {[%emt 0:00:09]} Bf5 {[%emt 0:02:13]} 15. Bb4 {[%emt 0:03:12]} a6 {[%emt 0:06:20]} 16. Be2 {[%emt 0:02:26]} Re8 {[%emt 0:04:31]} 17. g4 {[%emt 0:20:31]} Bg6 {[%emt 0:07:29]} 18. f4 {[%emt 0:08:05]} Be4 {[%emt 0:01:00]} 19. Qd1 {[%emt 0:01:33]} Nc6 {[%emt 0:01:09]} 20. Be1 {[%emt 0:04:40]} f5 {[%emt 0:03:21]} 21. Bf2 {[%emt 0:08:07]} Qd7 {[%emt 0:10:21]} 22. h3 {[%emt 0:07:09]} Rf8 {[%emt 0:03:10]} 23. g5 {[%emt 0:08:25]} Nd8 {[%emt 0:08:55]} 24. Bf3 {[%emt 0:02:45]} Ne6 {[%emt 0:00:17]} 25. Be3 {[%emt 0:01:07]} Rfd8 {[%emt 0:04:26]} 26. Qd2 {[%emt 0:05:05]} Rac8 {[%emt 0:03:51]} 27. Rad1 {[%emt 0:06:46]} Bxf3 {[%emt 0:03:08]} 28. Rxf3 {[%emt 0:00:05]} c5 {[%emt 0:01:25]} 29. h4 {[%emt 0:09:44]} Qf7 {[%emt 0:03:16]} 30. Qf2 {[%emt 0:02:27]} Qh5 {[%emt 0:01:06]} 31. Rd2 {[%emt 0:01:31]} cxd4 {[%emt 0:01:35]} 32. Bxd4 {[%emt 0:00:12]} Rc1+ {[%emt 0:00:53]} 33. Kg2 {[%emt 0:00:17]} Rdc8 {[%emt 0:02:48]} 34. Be3 {[%emt 0:02:46]} Nc5 {[%emt 0:01:09]} 35. Bxc5 {[%emt 0:00:29]} R1xc5 {[%emt 0:00:49]} 36. Rfd3 {[%emt 0:00:26]} Qf7 {[%emt 0:00:29]} 37. b4 {[%emt 0:00:08]} Rc3 {[%emt 0:02:17]} 38. Rxd5 {[%emt 0:00:12]} Qh5 {[%emt 0:00:06]} 39. R5d3 {[%emt 0:00:19]} Qg4+ {[%emt 0:00:41]} 40. Qg3 {[%emt 0:00:04]} Rxd3 {[%emt 0:00:11]} 41. Rxd3 {[%emt 0:00:17]} Rc2+ {[%emt 0:00:03]} 42. Kg1 {[%emt 0:00:10]} Qe2 {[%emt 0:00:23]} 43. Re3 {[%emt 0:00:23]} b6 {[%emt 0:00:51]} 0-1

[Event "Charlotte Open 2024"]
[Site "Charlotte"]
[Date "2024.01.14"]
[Round "3.1"]
[White "Chasin, Nico"]
[Black "Cordova, Emilio"]
[Result "1-0"]
[ECO "A85"]
[WhiteElo "2437"]
[BlackElo "2563"]
[Annotator "RC"]
[PlyCount "69"]
[EventDate "2024.01.05"]
[EventType "swiss"]
[EventCountry "USA"]
[SourceTitle "playchess.com"]
[Source "ChessBase"]
[SourceQuality "1"]
[TimeControl "6600+10"]

1. d4 {[%emt 0:03:16]} f5 {[%emt 0:03:36]} 2. c4 {[%emt 0:01:27]} Nf6 {[%emt 0:00:15]} 3. Nc3 {[%emt 0:00:17]} g6 {[%emt 0:01:31]} 4. h4 {[%emt 0:03:48]} Bg7 {[%emt 0:05:11]} 5. h5 {[%emt 0:00:05]} Nxh5 {[%emt 0:00:05]} 6. e4 {[%emt 0:00:04]} Nf6 {[%emt 0:00:05]} 7. e5 {[%emt 0:00:53]} Ne4 {[%emt 0:00:24]} 8. Bd3 {[%emt 0:10:16]} Nxc3 {[%emt 0:10:43]} 9. bxc3 {[%emt 0:00:07]} d6 {[%emt 0:06:55]} 10. f4 {[%emt 0:02:09]} c5 {[%emt 0:00:06]} 11. Nf3 {[%emt 0:01:03]} Nc6 {[%emt 0:00:15]} 12. Be3 {[%emt 0:01:02]} dxe5 {[%emt 0:06:56]} 13. fxe5 {[%emt 0:03:20]} cxd4 {[%emt 0:00:43]} 14. cxd4 {[%emt 0:00:16]} f4 {[%emt 0:00:44]} 15. Bxf4 {[%emt 0:01:56]} Bg4 {[%emt 0:01:08]} 16. Be3 {[%emt 0:09:41]} O-O {[%emt 0:18:03]} 17. Be4 {[%emt 0:00:19]} e6 {[%emt 0:00:26]} 18. Rb1 {[%emt 0:06:48]} Qa5+ {[%emt 0:07:13]} 19. Qd2 {[%emt 0:01:17]} Qxd2+ {[%emt 0:03:10]} 20. Kxd2 {[%emt 0:04:40]} Na5 {[%emt 0:02:01]} 21. Kd3 {[%emt 0:05:33]} Rad8 {[%emt 0:02:39]} 22. Rh4 {[%emt 0:05:49]} Bxf3 {[%emt 0:04:03]} 23. Bxf3 {[%emt 0:04:33]} Bxe5 {[%emt 0:00:20]} 24. Re4 {[%emt 0:00:11]} Rf5 {[%emt 0:07:37]} 25. Bg4 {[%emt 0:18:32]} Bg7 {[%emt 0:07:02]} 26. Bxf5 {[%emt 0:02:18]} exf5 {[%emt 0:00:25]} 27. Re7 {[%emt 0:00:47]} Nc6 {[%emt 0:04:37]} 28. Rbxb7 {[%emt 0:01:07]} Nxe7 {[%emt 0:00:57]} 29. Rxe7 {[%emt 0:00:07]} f4 {[%emt 0:00:06]} 30. Bf2 {[%emt 0:00:05]} g5 {[%emt 0:00:07]} 31. d5 {[%emt 0:02:11]} g4 {[%emt 0:00:36]} 32. Bh4 {[%emt 0:00:03]} Rb8 {[%emt 0:00:36]} 33. d6 {[%emt 0:01:04]} Bf8 {[%emt 0:04:10]} 34. d7 {[%emt 0:00:33]} Bxe7 {[%emt 0:04:24]} 35. Bxe7 {[%emt 0:00:07]} 1-0